bitfinex/quotes_ETHUSD_20211001
["timestamp","ask_amount","ask_price","bid_price","bid_amount"]
[1633051086402,1.41486394,3012.0,3011.9,0.2]
[1633051086602,1.95494303,3012.0,3011.9,0.2]
[1633051086808,0.12086394,3012.0,3011.5,0.003]
[1633051087606,1.294,3011.8,3011.5,0.003]
[1633051087804,0.023974,3011.9,3011.5,0.003]
[1633051087805,0.937074,3011.9,3011.5,0.003]
[1633051088002,3.3221282,3011.8,3011.6,0.12544606]
[1633051088206,8.3043882,3011.8,3011.6,0.05216994]
[1633051088602,8.26860626,3011.7,3011.6,0.05216994]
[1633051088802,2.86260626,3011.7,3011.6,0.05216994]
[1633051090001,2.86260626,3011.7,3011.5,1.603]
[1633051090002,1.56860626,3011.7,3011.5,1.603]
[1633051090207,0.88747823,3011.6,3011.5,1.603]
[1633051090808,0.83747823,3011.6,3011.5,1.603]
[1633051092607,2.13147823,3011.6,3011.5,1.603]
[1633051092809,0.83747823,3011.6,3011.5,1.603]
[1633051094008,2.13147823,3011.6,3011.5,1.603]
[1633051094410,2.13147823,3011.6,3010.7,0.003]
[1633051094411,7.80615545,3011.4,3010.7,0.003]
[1633051094611,0.04932514,3010.8,3010.7,0.003]
[1633051094810,5.75989356,3010.8,3010.3,0.006]
[1633051095009,5.75989356,3010.8,3009.9,0.009]
[1633051095010,4.98455,3010.4,3009.9,0.009]
[1633051095271,4.98455,3010.4,3009.5,0.012]
[1633051095414,3.14061402,3010.3,3009.5,0.012]
[1633051095610,1.99009482,3009.6,3009.5,0.012]
[1633051095818,1.99009482,3009.6,3009.1,0.012]
[1633051095819,3.50349482,3009.6,3009.1,0.012]
[1633051096014,0.81174539,3009.5,3009.1,0.012]
[1633051096212,0.7297,3009.7,3009.1,0.012]
[1633051096411,4.98541,3009.7,3009.1,0.012]
[1633051097212,1.67870921,3009.3,3009.1,0.012]
[1633051097414,9.994624,3010.1,3009.1,0.012]
[1633051098015,9.994624,3010.1,3009.1,1.612]
[1633051098412,1.42767318,3009.2,3009.1,1.6]
[1633051098812,1.42767318,3009.2,3009.1,1.612]
[1633051099012,1.42767318,3009.2,3009.1,1.70160401]
[1633051099514,0.76803595,3009.3,3009.1,1.70160401]
[1633051099914,6.64812,3009.7,3009.2,0.012]
[1633051100716,1.46599715,3009.4,3009.2,0.012]
[1633051100913,0.75630386,3009.4,3009.2,0.012]
[1633051101113,0.95805654,3009.4,3009.2,0.012]
[1633051101314,4.98586,3009.3,3009.2,0.012]
[1633051102114,6.95018977,3009.3,3009.2,0.012]
[1633051104385,4.98586,3009.3,3009.2,0.012]
[1633051105385,6.56454436,3009.3,3009.2,0.012]
[1633051105583,6.56454436,3009.3,3009.1,1.562]
[1633051105786,4.98586,3009.3,3009.1,1.562]
[1633051106584,5.18759226,3009.3,3009.1,1.562]
[1633051106786,2.00809376,3009.2,3009.1,1.562]
[1633051106984,5.18759226,3009.3,3009.1,1.562]
[1633051108785,7.19315291,3009.3,3009.1,1.562]
[1633051109787,6.99142065,3009.3,3009.1,1.562]
[1633051109985,6.99142065,3009.3,3009.2,0.08957337]
[1633051110586,2.00556065,3009.3,3009.2,0.08957337]
[1633051111090,4.98593,3009.6,3009.2,0.08957337]
[1633051111887,1.99027987,3009.5,3009.2,0.08957337]
[1633051112089,4.98608,3009.4,3009.1,1.562]
[1633051112288,0.023974,3009.4,3009.1,1.562]
[1633051113289,5.91278643,3009.2,3009.1,1.562]
[1633051115889,4.98703,3009.2,3009.1,1.65160401]
[1633051116088,1.99027987,3009.5,3009.1,1.65160401]
[1633051117089,0.75630754,3009.4,3009.1,1.65160401]
[1633051117290,4.98659,3009.3,3009.1,1.65160401]
[1633051117488,0.75630754,3009.4,3009.1,1.65160401]
[1633051117688,0.95805136,3009.4,3009.1,1.562]
[1633051118697,4.98616,3009.3,3009.1,1.562]
[1633051121492,4.98616,3009.3,3009.2,0.08957337]
[1633051122090,1.99027987,3009.5,3009.2,0.08957337]
[1633051122490,0.76050856,3009.4,3009.2,0.08957337]
[1633051123094,0.96226339,3009.4,3009.1,1.562]
[1633051123492,4.98637,3009.3,3009.1,1.562]
[1633051126897,4.98637,3009.3,3009.2,0.08957337]
[1633051128499,4.98637,3009.3,3009.1,1.562]
[1633051128698,5.18811489,3009.3,3009.1,1.562]
[1633051129701,5.18811489,3009.3,3009.2,1.294]
[1633051129702,5.03811489,3009.3,3009.2,1.294]
[1633051129902,0.0038,3010.0,3009.3,9.97456252]
[1633051130105,0.0038,3010.0,3009.6,0.048727]
[1633051130303,0.0038,3010.0,3009.7,0.2]
[1633051130902,1.7938936,3009.8,3009.7,0.2]
[1633051131304,1.7938936,3009.8,3009.3,1.86716252]
[1633051131703,0.88209218,3009.6,3009.3,1.86716252]
[1633051132305,1.7938936,3009.8,3009.3,1.86716252]
[1633051132505,1.7938936,3009.8,3009.4,0.19038453]
[1633051132905,0.0038,3010.0,3009.4,0.19038453]
[1633051134106,0.10095681,3009.9,3009.7,1.294]
[1633051134306,0.10095681,3009.9,3009.7,1.818]
[1633051134508,0.10095681,3009.9,3009.7,2.818]
[1633051135108,0.10095681,3009.9,3009.8,1.294]
[1633051135907,0.10095681,3009.9,3009.8,2.294]
[1633051137907,0.0038,3010.0,3009.9,4.98355]
[1633051138309,0.0038,3010.0,3009.9,7.27755]
[1633051138510,0.0038,3010.0,3009.9,2.294]
[1633051138711,0.0038,3010.0,3009.9,1.294]
[1633051138913,0.94077997,3010.0,3009.8,1.79026201]
[1633051139112,0.0038,3010.0,3009.8,1.79026201]
[1633051139513,0.0038,3010.0,3009.8,1.6]
[1633051139718,1.90754295,3009.9,3009.8,1.6]
[1633051141113,0.10099925,3009.9,3009.8,1.6]
[1633051142713,0.10099925,3009.9,3009.8,2.894]
[1633051143112,0.10099925,3009.9,3009.8,1.6]
[1633051143314,0.0038,3010.0,3009.8,1.6]
[1633051143514,0.0038,3010.0,3009.8,1.79026201]
[1633051143718,1.45889687,3009.9,3009.8,1.79026201]
[1633051145114,1.55988618,3009.9,3009.8,1.6]
[1633051145316,0.10098931,3009.9,3009.8,1.6]
[1633051146515,2.08651051,3009.9,3009.8,1.6]
[1633051146716,0.10098931,3009.9,3009.8,1.6]
[1633051146919,0.10098931,3009.9,3009.8,2.894]
[1633051147117,0.10098931,3009.9,3009.8,3.148826]
[1633051147316,0.10098931,3009.9,3009.8,4.148826]
[1633051147717,0.10098931,3009.9,3009.8,5.07597162]
[1633051147916,0.10098931,3009.9,3009.8,4.148826]
[1633051148919,0.0038,3010.0,3009.8,4.148826]
[1633051148920,0.0038,3010.0,3009.8,4.33908801]
[1633051149118,0.0038,3010.0,3009.9,1.0]
[1633051149319,0.0038,3010.0,3009.9,2.494]
[1633051149922,0.0038,3010.0,3009.9,3.20157982]
[1633051150524,0.0038,3010.0,3009.9,8.18448982]
[1633051150722,0.10481079,3010.0,3009.9,11.50611942]
[1633051150920,0.10481079,3010.0,3009.9,30.88611942]
[1633051151323,0.10481079,3010.0,3009.9,19.50611942]
[1633051151925,0.10481079,3010.0,3009.9,18.7985396]
[1633051152977,0.10481079,3010.0,3009.9,19.5766576]
[1633051154377,0.0038,3010.0,3009.9,19.76688898]
[1633051155583,0.003,3011.0,3009.9,15.79397898]
[1633051155781,0.003,3011.0,3010.1,1.9344298]
[1633051155981,0.003,3011.0,3010.2,0.2]
[1633051156181,0.10407418,3010.5,3010.4,10.800082]
[1633051156382,0.10407418,3010.5,3010.4,0.250082]
[1633051156581,0.10407418,3010.5,3010.4,1.250082]
[1633051156781,0.10407418,3010.5,3010.4,6.231602]
[1633051156981,0.10407418,3010.5,3010.4,7.525602]
[1633051157382,0.10407418,3010.5,3010.4,16.50008845]
[1633051157783,7.80615545,3011.4,3010.5,6.7]
[1633051157984,7.80615545,3011.4,3010.9,4.98168]
[1633051158184,7.80615545,3011.4,3011.0,0.2]
[1633051158382,7.80615545,3011.4,3011.1,1.55911078]
[1633051158583,7.80615545,3011.4,3011.2,0.2]
[1633051159583,7.80615545,3011.4,3011.2,5.18136]
[1633051159982,7.80615545,3011.4,3011.3,0.24035521]
[1633051160585,8.70054193,3011.4,3011.3,0.24035521]
[1633051161585,8.75130987,3011.4,3011.2,0.2]
[1633051163389,4.96256967,3011.3,3011.2,0.2]
[1633051163590,4.96256967,3011.3,3010.8,0.2]
[1633051163591,1.46256967,3011.3,3010.8,0.2]
[1633051163791,8.77528387,3011.4,3010.8,0.2]
[1633051163989,8.75130987,3011.4,3010.8,0.2]
[1633051164194,8.75130987,3011.4,3010.8,5.18213]
[1633051164589,8.75130987,3011.4,3010.9,1.0]
[1633051165392,8.70054193,3011.4,3011.0,0.24040111]
[1633051166991,1.66621324,3011.3,3011.0,0.24040111]
[1633051167193,1.66621324,3011.3,3010.8,0.2]
[1633051167194,1.71695032,3011.3,3010.8,0.2]
[1633051167395,0.05073708,3011.3,3010.8,0.2]
[1633051168397,1.76058078,3011.1,3010.8,0.2]
[1633051168594,4.9829,3011.2,3010.8,0.2]
[1633051168795,0.05073708,3011.3,3010.8,0.2]
[1633051168995,0.05073708,3011.3,3010.8,1.8]
[1633051169997,1.6941267,3011.2,3010.8,1.8]
[1633051170999,1.6941267,3011.2,3010.9,0.24043171]
[1633051171198,1.6941267,3011.2,3010.9,0.44043171]
[1633051172400,5.69329411,3011.3,3010.9,0.44043171]
[1633051172601,0.71061411,3011.3,3010.9,0.2]
[1633051173001,0.05071668,3011.2,3010.9,0.2]
[1633051173605,1.77392921,3011.2,3010.9,0.2]
[1633051175202,1.77392921,3011.2,3010.9,0.013]
[1633051176004,1.294,3011.1,3010.9,0.013]
[1633051176207,0.02451329,3011.1,3010.8,1.6]
[1633051176602,0.02451329,3011.1,3011.0,0.24044701]
[1633051177004,1.31851329,3011.1,3011.0,0.24044701]
[1633051177204,9.62377079,3011.1,3011.0,0.24044701]
[1633051178404,9.67447757,3011.1,3010.8,1.6]
[1633051178604,4.98312,3011.0,3010.8,1.6]
[1633051179406,3.39747757,3011.1,3010.8,1.6]
[1633051179809,8.38043757,3011.1,3010.8,1.6]
[1633051180609,0.07522007,3011.1,3010.8,1.6]
[1633051180809,5.03367678,3011.1,3010.8,1.6]
[1633051181414,0.05070678,3011.1,3010.8,1.6]
[1633051182010,7.83012945,3011.4,3010.9,0.24046231]
[1633051182011,4.98275,3011.2,3010.9,0.24046231]
[1633051182410,0.9508837,3011.0,3010.9,0.24046231]
[1633051182810,1.5245568,3011.0,3010.9,0.24046231]
[1633051183410,7.83012945,3011.4,3010.9,0.24046231]
[1633051183811,0.78118351,3011.3,3010.8,1.6]
[1633051184014,0.83191176,3011.3,3010.8,1.6]
[1633051184413,1.49999354,3011.1,3010.8,1.6]
[1633051184613,5.81463176,3011.3,3010.8,1.6]
[1633051184815,0.05072825,3011.3,3010.8,1.6]
[1633051185515,0.05072825,3011.3,3010.9,0.2]
[1633051187114,1.63462759,3011.0,3010.9,0.2]
[1633051187515,1.63462759,3011.0,3010.9,0.44046231]
[1633051188114,0.87757343,3011.1,3010.9,0.44046231]
[1633051188716,0.87757343,3011.1,3010.9,5.42257231]
[1633051189116,0.87757343,3011.1,3010.9,0.44046231]
[1633051189515,0.05069739,3011.0,3010.9,0.2]
[1633051190115,0.05069739,3011.0,3010.9,5.18211]
[1633051190315,0.05069739,3011.0,3010.9,1.2]
[1633051190518,0.05069739,3011.0,3010.9,0.2]
[1633051190716,0.00069739,3011.0,3010.9,3.52137]
[1633051191115,0.00069739,3011.0,3010.9,9.50342]
[1633051192319,0.00069739,3011.0,3010.9,4.52137]
[1633051192919,8.55561098,3011.4,3010.9,4.52137]
[1633051192920,8.55561098,3011.4,3010.9,4.78683231]
[1633051193322,8.55561098,3011.4,3010.9,9.76884231]
[1633051194280,8.55561098,3011.4,3010.9,4.78683231]
[1633051194822,8.55561098,3011.4,3010.9,4.52137]
[1633051195019,0.02572932,3011.3,3010.9,4.52137]
[1633051195621,0.02572932,3011.3,3011.0,4.98197]
[1633051196826,0.02572932,3011.3,3011.1,1.0]
[1633051197223,0.02572932,3011.3,3011.0,1.0]
[1633051199227,0.02572932,3011.3,3011.0,5.98192]
[1633051202431,0.02572932,3011.3,3011.0,1.0]
[1633051202631,1.98187795,3011.2,3011.0,1.0]
[1633051203432,0.76235399,3011.1,3010.9,0.2]
[1633051204032,0.76235399,3011.1,3010.8,1.6]
[1633051205233,1.98187795,3011.2,3010.8,1.6]
[1633051206305,1.0076527,3011.1,3010.8,1.6]
[1633051208639,0.02572932,3011.3,3010.8,1.6]
[1633051209341,0.00917801,3011.0,3010.8,1.6]
[1633051209747,0.00917801,3011.0,3010.8,6.78228]
[1633051210143,0.00917801,3011.0,3010.9,1.0]
[1633051210344,0.00917801,3011.0,3010.9,1.2]
[1633051210543,0.00917801,3011.0,3010.9,0.2]
[1633051210745,0.00917801,3011.0,3010.9,1.2]
[1633051210943,0.00917801,3011.0,3010.9,0.2]
[1633051212145,0.00917801,3011.0,3010.9,1.494]
[1633051212412,0.02572932,3011.3,3010.9,4.47628221]
[1633051212709,0.02572932,3011.3,3011.2,0.0487]
[1633051212907,0.02572932,3011.3,3011.2,0.2487]
[1633051213108,0.003,3011.5,3011.4,1.15927494]
[1633051213309,0.003,3011.5,3011.4,1.35927494]
[1633051213508,0.003,3011.5,3011.4,2.35927494]
[1633051214511,0.003,3011.5,3011.4,3.65327494]
[1633051215112,0.003,3011.5,3011.4,4.22638171]
[1633051215512,0.003,3011.5,3011.4,9.20660171]
[1633051215712,0.003,3011.5,3011.4,8.63349494]
[1633051216512,0.003,3012.0,3011.5,10.75]
[1633051216711,0.003,3012.0,3011.7,1.294]
[1633051216911,0.003,3012.0,3011.8,0.2]
[1633051217111,0.003,3012.0,3011.8,3.0963877]
[1633051217311,0.003,3012.0,3011.8,0.2]
[1633051217912,0.003,3012.0,3011.9,1.294]
[1633051218113,0.003,3012.0,3011.9,1.494]
[1633051225813,0.003,3012.0,3011.9,1.77202102]
[1633051226014,0.026974,3013.0,3011.9,1.77202102]
[1633051226215,0.026974,3013.0,3012.4,8.2992]
[1633051226815,0.01800115,3012.9,3012.4,8.2992]
[1633051227014,1.77390248,3012.8,3012.4,8.2992]
[1633051227215,1.77390248,3012.8,3012.4,3.31968]
[1633051227818,0.01800115,3012.9,3012.4,3.31968]
[1633051228216,0.01800115,3012.9,3012.4,8.29943]
[1633051228416,0.01800115,3012.9,3012.4,9.89943]
[1633051228617,0.01800115,3012.9,3012.4,9.292488]
[1633051228817,0.01800115,3012.9,3012.7,1.57352337]
[1633051229018,0.01800115,3012.9,3012.8,3.1333017]
[1633051229217,0.01800115,3012.9,3012.8,0.2]
[1633051229416,0.01800115,3012.9,3012.8,6.17836]
[1633051229815,0.01800115,3012.9,3012.8,9.22790467]
[1633051230416,0.01800115,3012.9,3012.8,18.52190467]
[1633051230620,0.003,3013.5,3012.9,10.75]
[1633051230816,0.003,3013.5,3013.4,0.049221]
[1633051231016,0.003,3013.5,3013.4,1.537321]
[1633051231217,0.003,3013.5,3013.4,2.44936045]
[1633051231417,0.00675615,3013.5,3013.4,6.45481921]
[1633051231618,0.00675615,3013.5,3013.4,8.807851]
[1633051231817,0.00675615,3013.5,3013.4,7.46463]
[1633051232218,0.00675615,3013.5,3013.4,15.46463]
[1633051232417,2.43975615,3014.2,3013.4,10.536165]
[1633051232619,0.9011421,3014.3,3013.5,0.003]
[1633051232818,0.8511421,3014.3,3013.6,0.2]
[1633051233018,0.023974,3013.8,3013.6,0.2]
[1633051234019,0.023974,3013.8,3013.6,3.5183404]
[1633051234218,5.002034,3014.3,3013.6,3.5183404]
[1633051234617,2.483,3014.5,3013.7,4.31866]
[1633051234818,2.483,3014.5,3013.7,6.33879079]
[1633051235019,1.71730812,3014.4,3013.8,1.0]
[1633051235418,1.71730812,3014.4,3013.8,3.94702393]
[1633051235619,1.71730812,3014.4,3013.8,1.0]
[1633051236017,1.61730812,3014.4,3013.7,11.31866]
[1633051236218,1.61730812,3014.4,3013.9,3.3183533]
[1633051236417,6.59520812,3014.4,3013.9,3.3183533]
[1633051236619,1.61730812,3014.4,3013.9,3.3183533]
[1633051236820,0.71557702,3014.3,3013.9,3.3183533]
[1633051237019,1.61730812,3014.4,3013.9,3.3183533]
[1633051238620,1.36730812,3014.4,3013.9,3.3183533]
[1633051239023,1.294,3014.2,3013.9,3.3183533]
[1633051239222,1.36730812,3014.4,3013.5,3.3219706]
[1633051239223,2.54722359,3013.7,3013.5,3.3219706]
[1633051239422,4.07072359,3013.7,3013.5,0.003]
[1633051239723,4.07072359,3013.7,3013.0,0.006]
[1633051239926,1.45479901,3013.2,3013.0,0.006]
[1633051240122,1.45479901,3013.2,3013.0,1.606]
[1633051240324,0.78256475,3013.6,3013.0,1.606]
[1633051240523,0.78256475,3013.6,3013.1,0.003]
[1633051241525,2.54722359,3013.7,3013.1,0.003]
[1633051242123,2.54722359,3013.7,3013.2,0.14339608]
[1633051242524,2.54722359,3013.7,3013.3,0.003]
[1633051242724,4.04239315,3013.7,3013.4,3.31875]
[1633051243123,4.04239315,3013.7,3013.5,0.003]
[1633051243124,0.14754257,3013.6,3013.5,0.003]
[1633051245125,1.44154257,3013.6,3013.5,0.003]
[1633051245329,0.14754257,3013.6,3013.5,0.003]
[1633051245728,1.7856798,3013.6,3013.4,0.003]
[1633051245934,0.14754257,3013.6,3013.4,0.003]
[1633051247529,5.12645257,3013.6,3013.4,0.003]
[1633051247732,4.97891,3013.6,3013.5,0.14335025]
[1633051248131,4.92891,3013.6,3013.5,0.14635025]
[1633051248531,6.22291,3013.6,3013.5,0.14335025]
[1633051248733,1.62819883,3013.5,3013.4,0.003]
[1633051250332,2.92219883,3013.5,3013.4,0.003]
[1633051250534,2.92219883,3013.5,3012.8,0.94422359]
[1633051250535,5.77374919,3013.0,3012.8,0.94422359]
[1633051250733,5.77374919,3013.0,3012.5,0.003]
[1633051250734,0.94422359,3012.8,3012.5,0.003]
[1633051250932,4.98068,3012.7,3012.3,0.003]
[1633051251337,8.7560644,3012.4,3012.3,0.003]
[1633051251535,0.86019234,3011.9,3011.5,0.009]
[1633051251735,2.00829974,3011.7,3011.5,0.009]
[1633051252135,0.5818,3011.8,3011.5,0.009]
[1633051252535,3.05756465,3012.7,3011.6,1.294]
[1633051252737,0.94422359,3012.8,3012.0,3.3199558]
[1633051252738,0.94960301,3012.6,3012.0,3.3199558]
[1633051253135,0.94960301,3012.6,3012.1,0.14673232]
[1633051253136,1.89228343,3012.3,3012.1,0.14673232]
[1633051253336,0.94960301,3012.6,3012.1,0.14673232]
[1633051253536,0.94960301,3012.6,3012.2,0.003]
[1633051254139,0.14731366,3012.5,3012.2,0.003]
[1633051254536,0.14731366,3012.5,3012.1,0.003]
[1633051254941,0.14731366,3012.5,3012.1,1.003]
[1633051255338,0.14731366,3012.5,3012.2,0.003]
[1633051256339,0.14731366,3012.5,3012.1,1.003]
[1633051256738,0.14731366,3012.5,3012.2,0.003]
[1633051256938,0.14731366,3012.5,3012.2,4.98262]
[1633051257339,0.14731366,3012.5,3012.3,0.003]
[1633051257539,0.14731366,3012.5,3012.3,1.003]
[1633051257742,0.14731366,3012.5,3012.3,0.003]
[1633051257943,0.14731366,3012.5,3012.4,0.003]
[1633051258139,0.14731366,3012.5,3012.2,0.003]
[1633051258745,2.7404006,3012.8,3012.3,3.46351703]
[1633051258940,2.7404006,3012.8,3012.5,3.3197917]
[1633051259340,2.7404006,3012.8,3012.5,3.3227917]
[1633051259745,2.88777753,3012.8,3012.5,3.3227917]
[1633051263141,3.61661929,3012.8,3012.5,3.3227917]
[1633051263743,1.09160052,3012.8,3012.5,3.3227917]
[1633051263944,1.09160052,3012.8,3012.6,2.494]
[1633051264142,5.77374919,3013.0,3012.8,6.65]
[1633051264346,5.77374919,3013.0,3012.9,0.2]
[1633051264743,5.77374919,3013.0,3012.9,1.13504634]
[1633051264942,4.45305527,3013.3,3013.0,0.09952716]
[1633051265143,4.45305527,3013.3,3013.1,0.2]
[1633051266142,0.003,3014.0,3013.3,10.7]
[1633051266343,0.003,3014.0,3013.6,3.3179792]
[1633051266546,0.003,3014.0,3013.7,0.2]
[1633051266742,0.003,3014.0,3013.7,1.2]
[1633051267142,0.003,3014.0,3013.8,0.89916174]
[1633051267342,0.003,3014.0,3013.8,1.09916174]
[1633051267542,0.003,3014.0,3013.8,6.07601174]
[1633051268544,0.003,3014.0,3013.9,1.0]
[1633051268944,0.003,3014.5,3014.0,6.05]
[1633051269144,0.003,3014.5,3014.2,3.31732]
[1633051269346,0.003,3014.5,3014.3,0.99530404]
[1633051269549,0.003,3014.5,3014.3,1.99530404]
[1633051269745,0.003,3014.5,3014.3,1.15625558]
[1633051269948,0.003,3014.5,3014.3,0.15625558]
[1633051270545,0.003,3014.5,3014.3,1.0]
[1633051270745,0.003,3014.5,3014.3,0.78520075]
[1633051270945,0.13873846,3014.4,3014.3,0.78520075]
[1633051271348,0.13873846,3014.4,3014.3,1.78520075]
[1633051271747,0.13873846,3014.4,3014.3,0.78520075]
[1633051271953,0.13873846,3014.4,3014.3,1.78520075]
[1633051272148,0.13873846,3014.4,3014.3,3.53138244]
[1633051272407,0.13873846,3014.4,3014.3,1.78520075]
[1633051273007,0.13873846,3014.4,3014.3,0.78520075]
[1633051273209,0.13873846,3014.4,3014.3,1.78520075]
[1633051273507,0.13873846,3014.4,3014.3,0.78520075]
[1633051273708,0.13873846,3014.4,3014.2,16.49357]
[1633051273907,0.14067508,3014.4,3014.2,16.49357]
[1633051274710,0.14067508,3014.4,3014.2,17.34466033]
[1633051275208,0.00193662,3014.4,3014.3,3.05627107]
[1633051275414,0.00193662,3014.4,3014.3,0.15627107]
[1633051276218,0.14066503,3014.4,3014.3,1.0]
[1633051276617,0.14066503,3014.4,3014.2,12.36841033]
[1633051276819,0.14066503,3014.4,3014.3,1.0]
[1633051276820,0.09066503,3014.4,3014.3,1.0]
[1633051277018,0.09066503,3014.4,3014.2,11.51732]
[1633051277221,0.09066503,3014.4,3014.3,1.0]
[1633051277420,0.09066503,3014.4,3014.2,11.51732]
[1633051277822,0.09066503,3014.4,3014.3,1.0]
[1633051278021,0.09066503,3014.4,3014.2,11.51732]
[1633051278421,0.09066503,3014.4,3014.3,4.25]
[1633051278620,0.09066503,3014.4,3014.3,1.0]
[1633051280623,0.003,3014.5,3014.3,1.0]
[1633051280821,0.003,3014.5,3014.4,0.18027179]
[1633051281825,0.11771845,3014.5,3014.2,11.51732]
[1633051282023,0.11771845,3014.5,3014.2,3.51732]
[1633051282223,0.11771845,3014.5,3014.2,11.51732]
[1633051282826,1.294,3014.4,3014.2,11.51732]
[1633051283025,0.14169245,3014.5,3013.8,1.6]
[1633051283427,3.31862,3014.4,3013.8,1.6]
[1633051283625,10.22442178,3013.9,3013.8,1.6]
[1633051283827,1.85592286,3013.9,3013.8,1.6]
[1633051284026,3.14992286,3013.9,3013.8,1.6]
[1633051284627,8.12888286,3013.9,3013.8,1.6]
[1633051285032,6.83488286,3013.9,3013.8,1.6]
[1633051285226,8.10490886,3013.9,3013.8,1.6]
[1633051286226,8.10490886,3013.9,3013.8,1.78044216]
[1633051286425,8.13032686,3013.9,3013.8,1.78044216]
[1633051287028,15.33032686,3013.9,3013.8,1.78044216]
[1633051287229,15.44491871,3013.9,3013.8,1.6]
[1633051287630,8.41950071,3013.9,3013.8,1.6]
[1633051287830,7.12550071,3013.9,3013.8,1.6]
[1633051288830,8.41950071,3013.9,3013.8,1.6]
[1633051289029,17.41950071,3013.9,3013.8,1.6]
[1633051289429,18.83251369,3013.9,3013.8,1.6]
[1633051289828,17.41950071,3013.9,3013.8,1.6]
[1633051290230,8.41950071,3013.9,3013.8,1.6]
[1633051290629,15.8579216,3013.9,3013.8,1.6]
[1633051290829,13.8579216,3013.9,3013.8,1.6]
[1633051291229,13.8579216,3013.9,3013.8,1.55]
[1633051291631,13.74332975,3013.9,3013.8,1.55]
[1633051291829,13.74332975,3013.9,3013.8,1.73044216]
[1633051292630,13.74332975,3013.9,3013.8,1.55]
[1633051292833,13.85792215,3013.9,3013.8,1.55]
[1633051295440,5.52802229,3013.9,3013.8,1.55]
[1633051295638,0.1145924,3013.9,3013.8,1.55]
[1633051295835,9.24e-05,3013.9,3013.8,1.75]
[1633051296036,9.24e-05,3013.9,3013.8,3.044]
[1633051296236,0.003,3014.5,3013.8,2.75]
[1633051296638,0.003,3014.5,3014.1,3.31806]
[1633051296838,0.003,3014.5,3014.3,4.97631]
[1633051297037,0.003,3014.5,3014.4,1.294]
[1633051297237,0.003,3014.5,3014.4,2.53156799]
[1633051297637,0.003,3014.5,3014.4,1.23756799]
[1633051298040,0.003,3014.5,3014.4,0.23756799]
[1633051298239,0.06042388,3014.5,3014.4,7.444]
[1633051298439,0.06042388,3014.5,3014.4,19.63270764]
[1633051298637,0.06042388,3014.5,3014.4,11.2278]
[1633051299237,0.06042388,3014.5,3014.4,16.20383]
[1633051299438,0.06042388,3014.5,3014.4,17.98192882]
[1633051299841,0.003,3015.0,3014.8,0.86134626]
[1633051300238,0.003,3015.0,3014.6,1.0]
[1633051300438,0.003,3015.0,3014.4,0.2]
[1633051301038,0.003,3015.0,3014.8,3.31676]
[1633051302641,0.003,3015.0,3014.9,0.26610961]
[1633051303640,0.003,3015.0,3014.8,3.31676]
[1633051303841,0.03182898,3015.0,3014.8,3.31676]
[1633051304842,0.03182898,3015.0,3014.9,1.294]
[1633051305044,0.03182898,3015.0,3014.9,1.0]
[1633051305242,0.03182898,3015.0,3014.8,3.31676]
[1633051305443,8.27811898,3015.5,3015.0,0.95160579]
[1633051305644,1.42269952,3015.4,3015.0,0.95160579]
[1633051305848,0.003,3015.5,3015.0,0.95160579]
[1633051306444,4.97883,3015.5,3015.0,0.95160579]
[1633051306642,4.97883,3015.5,3014.5,0.003]
[1633051306842,1.88628927,3015.3,3014.5,1.203]
[1633051307245,1.88628927,3015.3,3014.5,4.5201278]
[1633051307448,0.003,3015.5,3014.7,3.31744]
[1633051307449,3.32048,3015.5,3014.7,3.31744]
[1633051307645,0.87507311,3015.3,3014.7,4.30327115]
[1633051307845,4.97621,3015.2,3014.7,4.30327115]
[1633051308044,4.97621,3015.2,3014.7,3.31744]
[1633051308306,4.97621,3015.2,3014.8,0.28050862]
[1633051309048,1.4246736,3015.1,3014.8,0.28050862]
[1633051309247,4.99436599,3015.1,3014.7,3.31744]
[1633051309646,4.99436599,3015.1,3014.7,4.29160634]
[1633051309846,0.01798599,3015.1,3014.7,4.29160634]
[1633051310046,0.01798599,3015.1,3014.8,1.6]
[1633051311246,4.97607,3015.3,3014.8,1.6]
[1633051312048,6.60309599,3015.4,3014.8,1.6]
[1633051312247,3.32048,3015.5,3014.8,1.6]
[1633051312757,0.003,3015.5,3014.8,1.6]
[1633051313149,1.98221984,3015.4,3014.8,1.6]
[1633051313346,0.003,3015.5,3014.8,1.6]
[1633051313550,0.003,3015.5,3014.9,0.2894397]
[1633051313756,0.94945044,3015.4,3014.9,0.2894397]
[1633051314349,1.96662154,3015.3,3014.9,0.2894397]
[1633051314548,5.28407154,3015.3,3014.9,0.2894397]
[1633051314748,4.9763,3015.2,3014.8,1.6]
[1633051316153,0.00084999,3015.1,3014.8,1.6]
[1633051316351,1.00648366,3014.9,3014.8,1.6]
[1633051317352,0.00084999,3015.1,3014.8,1.6]
[1633051317959,0.00084999,3015.1,3014.8,4.91712]
[1633051318151,0.00084999,3015.1,3014.8,1.6]
[1633051318351,0.99253602,3014.9,3014.8,1.6]
[1633051318950,0.99253602,3014.9,3014.8,1.88954806]
[1633051319552,0.00084999,3015.1,3014.8,1.88954806]
[1633051319750,0.00084999,3015.1,3014.9,4.33157319]
[1633051319953,0.00084999,3015.1,3015.0,3.33527559]
[1633051320151,0.00084999,3015.1,3015.0,4.33527559]
[1633051320350,0.00084999,3015.1,3015.0,1.2]
[1633051320551,0.00084999,3015.1,3015.0,5.17473]
[1633051320750,0.00084999,3015.1,3015.0,0.2]
[1633051323051,0.00084999,3015.1,3015.0,1.494]
[1633051323315,0.00084999,3015.1,3015.0,2.8891]
[1633051323653,0.00084999,3015.1,3015.0,3.59869971]
[1633051324053,0.00084999,3015.1,3015.0,3.30469971]
[1633051324253,0.00084999,3015.1,3015.0,1.2]
[1633051324553,0.00084999,3015.1,3014.8,1.6]